[Event "Live Chess"]
[Site "Chess.com"]
[Date "2023.05.21"]
[Round "-"]
[White "Ferrarifan27"]
[Black "Singapourfeuj"]
[Result "1/2-1/2"]
[WhiteElo "2076"]
[BlackElo "2195"]
[TimeControl "300"]
[EndTime "4:06:55 PDT"]
[Termination "Game drawn by stalemate"]

1. e4 {[%clk 0:04:58.9]} 1... e6 {[%clk 0:04:57.6]} 2. d4 {[%clk 0:04:57.6]}
2... d5 {[%clk 0:04:56.8]} 3. e5 {[%clk 0:04:55.8]} 3... c5 {[%clk 0:04:55.8]}
4. c3 {[%clk 0:04:55.1]} 4... Nc6 {[%clk 0:04:54.8]} 5. Nf3 {[%clk 0:04:53.8]}
5... Bd7 {[%clk 0:04:53.2]} 6. a3 {[%clk 0:04:52.8]} 6... Nge7 {[%clk
0:04:50.5]} 7. b4 {[%clk 0:04:49.6]} 7... cxd4 {[%clk 0:04:47.8]} 8. cxd4 {[%clk
0:04:47.7]} 8... Ng6 {[%clk 0:04:46.3]} 9. Bb2 {[%clk 0:04:46.1]} 9... f6 {[%clk
0:04:43.2]} 10. exf6 {[%clk 0:04:43.8]} 10... Qxf6 {[%clk 0:04:41.5]} 11. Be2
{[%clk 0:04:37.9]} 11... Bd6 {[%clk 0:04:39.8]} 12. O-O {[%clk 0:04:36]} 12...
O-O {[%clk 0:04:37.9]} 13. Nbd2 {[%clk 0:04:26.4]} 13... Nf4 {[%clk 0:04:36.3]}
14. g3 {[%clk 0:04:22.2]} 14... Nxe2+ {[%clk 0:04:33]} 15. Qxe2 {[%clk
0:04:20.9]} 15... a6 {[%clk 0:04:32.3]} 16. Kg2 {[%clk 0:04:13.3]} 16... Rae8
{[%clk 0:04:30.3]} 17. Ne5 {[%clk 0:04:08]} 17... Bxe5 {[%clk 0:04:28]} 18. dxe5
{[%clk 0:04:07.9]} 18... Qh6 {[%clk 0:04:24.4]} 19. Nb3 {[%clk 0:03:57.4]} 19...
Rf5 {[%clk 0:04:19.7]} 20. Nc5 {[%clk 0:03:53.2]} 20... Bc8 {[%clk 0:04:15]} 21.
h4 {[%clk 0:03:48.2]} 21... Ref8 {[%clk 0:04:12.7]} 22. Nd3 {[%clk 0:03:41.3]}
22... b6 {[%clk 0:04:10.2]} 23. Rac1 {[%clk 0:03:38.2]} 23... Bd7 {[%clk
0:04:08]} 24. Nf4 {[%clk 0:03:34.7]} 24... Rxf4 {[%clk 0:04:02.7]} 25. gxf4
{[%clk 0:03:33.8]} 25... Qxf4 {[%clk 0:04:01.4]} 26. Kh3 {[%clk 0:03:21.3]}
26... d4 {[%clk 0:03:58.3]} 27. Qg4 {[%clk 0:03:00.6]} 27... Qxg4+ {[%clk
0:03:53]} 28. Kxg4 {[%clk 0:02:59.2]} 28... Nxe5+ {[%clk 0:03:51.7]} 29. Kg3
{[%clk 0:02:52.2]} 29... Rf3+ {[%clk 0:03:49.7]} 30. Kh2 {[%clk 0:02:49.7]}
30... Rd3 {[%clk 0:03:44.6]} 31. Rcd1 {[%clk 0:02:44.2]} 31... Nf3+ {[%clk
0:03:42.7]} 32. Kh1 {[%clk 0:02:37.4]} 32... Rxd1 {[%clk 0:03:35.6]} 33. Rxd1
{[%clk 0:02:35.8]} 33... e5 {[%clk 0:03:34.3]} 34. h5 {[%clk 0:02:31.9]} 34...
Bc6 {[%clk 0:03:29.6]} 35. Kg2 {[%clk 0:02:28.4]} 35... Kf7 {[%clk 0:03:24]} 36.
Kg3 {[%clk 0:02:24.9]} 36... h6 {[%clk 0:03:20.4]} 37. Rc1 {[%clk 0:02:20.6]}
37... Bd5 {[%clk 0:03:16.2]} 38. Rc7+ {[%clk 0:02:16.6]} 38... Kf6 {[%clk
0:03:13.1]} 39. Rd7 {[%clk 0:02:10.7]} 39... Be4 {[%clk 0:03:10.5]} 40. Rd6+
{[%clk 0:02:03.9]} 40... Kg5 {[%clk 0:03:08.1]} 41. Rxb6 {[%clk 0:02:01.5]}
41... Kxh5 {[%clk 0:03:04.2]} 42. Rxa6 {[%clk 0:01:59.5]} 42... Ne1 {[%clk
0:03:00.5]} 43. Re6 {[%clk 0:01:51.4]} 43... Nd3 {[%clk 0:02:57.1]} 44. Bxd4
{[%clk 0:01:46.6]} 44... Bf5 {[%clk 0:02:50.1]} 45. Rxe5 {[%clk 0:01:31.5]}
45... Nxe5 {[%clk 0:02:48.8]} 46. Bxe5 {[%clk 0:01:31.4]} 46... Bd7 {[%clk
0:02:47]} 47. Bxg7 {[%clk 0:01:27.7]} 47... Kg5 {[%clk 0:02:45.3]} 48. Bd4
{[%clk 0:01:16]} 48... h5 {[%clk 0:02:43.7]} 49. Be3+ {[%clk 0:01:08.9]} 49...
Kf5 {[%clk 0:02:37.6]} 50. Kh4 {[%clk 0:01:07.7]} 50... Be8 {[%clk 0:02:36.5]}
51. a4 {[%clk 0:01:01.4]} 51... Bxa4 {[%clk 0:02:34.6]} 52. Kxh5 {[%clk
0:01:00.7]} 52... Be8+ {[%clk 0:02:29.2]} 53. Kh4 {[%clk 0:00:58.1]} 53... Bb5
{[%clk 0:02:27.3]} 54. Bc5 {[%clk 0:00:48.6]} 54... Kf4 {[%clk 0:02:24.5]} 55.
Kh5 {[%clk 0:00:43.9]} 55... Kf5 {[%clk 0:02:23.3]} 56. Kh6 {[%clk 0:00:40.2]}
56... Kf6 {[%clk 0:02:21.9]} 57. Bd4+ {[%clk 0:00:38.1]} 57... Kf5 {[%clk
0:02:17.8]} 58. Kg7 {[%clk 0:00:37.3]} 58... Ke4 {[%clk 0:02:14.4]} 59. Bc5
{[%clk 0:00:36.3]} 59... Kf5 {[%clk 0:02:10.6]} 60. Kf7 {[%clk 0:00:35.2]} 60...
Ke5 {[%clk 0:02:08.4]} 61. Ke7 {[%clk 0:00:34.2]} 61... Kd5 {[%clk 0:02:06.7]}
62. f4 {[%clk 0:00:31.4]} 62... Ke4 {[%clk 0:02:04.9]} 63. Bd6 {[%clk
0:00:30.1]} 63... Bc6 {[%clk 0:01:59.4]} 64. Kd8 {[%clk 0:00:28.2]} 64... Bb5
{[%clk 0:01:57.6]} 65. Kc7 {[%clk 0:00:27.4]} 65... Ba4 {[%clk 0:01:55.7]} 66.
Kb6 {[%clk 0:00:24.6]} 66... Kd5 {[%clk 0:01:53]} 67. Be5 {[%clk 0:00:23.8]}
67... Kc4 {[%clk 0:01:51.1]} 68. Ka5 {[%clk 0:00:22.7]} 68... Bd7 {[%clk
0:01:48.7]} 69. Bd6 {[%clk 0:00:20.9]} 69... Kd5 {[%clk 0:01:44]} 70. Bb8 {[%clk
0:00:17.7]} 70... Kc4 {[%clk 0:01:41.7]} 71. Bc7 {[%clk 0:00:16.4]} 71... Be8
{[%clk 0:01:28.5]} 72. f5 {[%clk 0:00:15.1]} 72... Kd5 {[%clk 0:01:27.3]} 73. f6
{[%clk 0:00:14]} 73... Ke6 {[%clk 0:01:26]} 74. Bd8 {[%clk 0:00:13.2]} 74... Kd7
{[%clk 0:01:23]} 75. Be7 {[%clk 0:00:12.9]} 75... Kc6 {[%clk 0:01:21.9]} 76. b5+
{[%clk 0:00:12.3]} 76... Kb7 {[%clk 0:01:21]} 77. b6 {[%clk 0:00:11.5]} 77...
Bf7 {[%clk 0:01:18.7]} 78. Kb5 {[%clk 0:00:09.2]} 78... Be8+ {[%clk 0:01:17.8]}
79. Kc5 {[%clk 0:00:08.5]} 79... Bf7 {[%clk 0:01:17.1]} 80. Bd8 {[%clk 0:00:08]}
80... Kc8 {[%clk 0:01:15.6]} 81. Bc7 {[%clk 0:00:07.9]} 81... Kb7 {[%clk
0:01:14.5]} 82. Kd6 {[%clk 0:00:07.3]} 82... Bb3 {[%clk 0:01:12.8]} 83. Ke7
{[%clk 0:00:07.2]} 83... Bc4 {[%clk 0:01:11.6]} 84. f7 {[%clk 0:00:07.1]} 84...
Bxf7 {[%clk 0:01:10.7]} 85. Kxf7 {[%clk 0:00:07]} 85... Ka8 {[%clk 0:01:06.9]}
86. Ke6 {[%clk 0:00:06.9]} 86... Kb7 {[%clk 0:01:06]} 87. Kd7 {[%clk 0:00:06.8]}
87... Ka8 {[%clk 0:01:05.1]} 88. Bd8 {[%clk 0:00:04.9]} 88... Kb7 {[%clk
0:01:04.2]} 89. Bc7 {[%clk 0:00:03.4]} 89... Ka8 {[%clk 0:01:02.8]} 90. Bg3
{[%clk 0:00:02.9]} 90... Kb7 {[%clk 0:01:01.8]} 91. Bf2 {[%clk 0:00:02.8]} 91...
Ka8 {[%clk 0:01:00.4]} 92. Kc6 {[%clk 0:00:02.6]} 92... Kb8 {[%clk 0:00:59.5]}
93. b7 {[%clk 0:00:02.2]} 1/2-1/2

[Event "Live Chess"]
[Site "Chess.com"]
[Date "2023.05.21"]
[Round "-"]
[White "smoggyrabbit"]
[Black "Missedidea"]
[Result "0-1"]
[WhiteElo "1699"]
[BlackElo "1853"]
[TimeControl "300"]
[EndTime "4:07:28 PDT"]
[Termination "Missedidea won on time"]

1. d4 {[%clk 0:04:58.6]} 1... Nf6 {[%clk 0:04:58.1]} 2. Nf3 {[%clk 0:04:57.2]}
2... g6 {[%clk 0:04:56.7]} 3. e3 {[%clk 0:04:55.6]} 3... Bg7 {[%clk 0:04:55.4]}
4. Be2 {[%clk 0:04:53.5]} 4... O-O {[%clk 0:04:53.7]} 5. O-O {[%clk 0:04:51.9]}
5... d6 {[%clk 0:04:52.6]} 6. b3 {[%clk 0:04:50.1]} 6... Nbd7 {[%clk 0:04:47.9]}
7. Bb2 {[%clk 0:04:48.3]} 7... Ne4 {[%clk 0:04:41.1]} 8. Nbd2 {[%clk 0:04:40.9]}
8... f5 {[%clk 0:04:33.4]} 9. Bc4+ {[%clk 0:04:21.3]} 9... Kh8 {[%clk
0:04:26.2]} 10. Nxe4 {[%clk 0:04:19.4]} 10... fxe4 {[%clk 0:04:23.7]} 11. Ng5
{[%clk 0:04:15.4]} 11... Nf6 {[%clk 0:04:12.7]} 12. Nf7+ {[%clk 0:04:12.4]}
12... Rxf7 {[%clk 0:04:11]} 13. Bxf7 {[%clk 0:04:10.9]} 13... d5 {[%clk
0:04:09.2]} 14. c4 {[%clk 0:04:04.7]} 14... c6 {[%clk 0:04:07.6]} 15. cxd5
{[%clk 0:03:46.3]} 15... cxd5 {[%clk 0:04:05.8]} 16. f3 {[%clk 0:03:40.6]} 16...
Qf8 {[%clk 0:04:02.7]} 17. fxe4 {[%clk 0:03:39.4]} 17... Qxf7 {[%clk 0:03:54.4]}
18. e5 {[%clk 0:03:38.1]} 18... Qe6 {[%clk 0:03:52.7]} 19. exf6 {[%clk
0:03:31.9]} 19... Qxe3+ {[%clk 0:03:51.3]} 20. Kh1 {[%clk 0:03:30.7]} 20... Bxf6
{[%clk 0:03:47.2]} 21. Rf3 {[%clk 0:02:29.7]} 21... Qe4 {[%clk 0:03:36.9]} 22.
Qd3 {[%clk 0:01:52.8]} 22... Bf5 {[%clk 0:03:35]} 23. Qxe4 {[%clk 0:01:49.6]}
23... dxe4 {[%clk 0:03:31.6]} 24. Rff1 {[%clk 0:01:44.5]} 24... Rd8 {[%clk
0:03:26.1]} 25. Rfd1 {[%clk 0:01:32]} 25... Kg8 {[%clk 0:03:11.5]} 26. Rac1
{[%clk 0:01:15.2]} 26... Rd7 {[%clk 0:03:04.5]} 27. Ba1 {[%clk 0:01:10.3]} 27...
e3 {[%clk 0:02:59.3]} 28. d5 {[%clk 0:00:54.1]} 28... e2 {[%clk 0:02:51.5]} 29.
Rd2 {[%clk 0:00:39]} 29... Bg5 {[%clk 0:02:46]} 30. Rc8+ {[%clk 0:00:34.3]}
30... Kf7 {[%clk 0:02:44]} 31. Rxe2 {[%clk 0:00:32.8]} 31... Rxd5 {[%clk
0:02:36]} 32. Re1 {[%clk 0:00:28.2]} 32... Bxc8 {[%clk 0:02:27.6]} 33. Rf1+
{[%clk 0:00:25.4]} 33... Rf5 {[%clk 0:02:24.4]} 34. Rxf5+ {[%clk 0:00:21]} 34...
Bxf5 {[%clk 0:02:21.8]} 35. g3 {[%clk 0:00:19.4]} 35... Ke6 {[%clk 0:02:19.5]}
36. Kg1 {[%clk 0:00:18.2]} 36... Kd5 {[%clk 0:02:18.5]} 37. Kf2 {[%clk
0:00:17.5]} 37... e5 {[%clk 0:02:17.5]} 38. Ke2 {[%clk 0:00:16.7]} 38... e4
{[%clk 0:02:15.6]} 39. Bb2 {[%clk 0:00:16]} 39... Bg4+ {[%clk 0:02:13.3]} 40.
Ke1 {[%clk 0:00:12.5]} 40... e3 {[%clk 0:02:11.4]} 41. Bc1 {[%clk 0:00:10]}
41... Ke4 {[%clk 0:02:09.9]} 42. Bb2 {[%clk 0:00:08.1]} 42... Kd3 {[%clk
0:02:08.6]} 43. Ba3 {[%clk 0:00:06.7]} 43... Bf6 {[%clk 0:02:06.7]} 44. Bc5
{[%clk 0:00:05.2]} 44... Bc3+ {[%clk 0:02:04.4]} 45. Kf1 {[%clk 0:00:04.4]}
45... e2+ {[%clk 0:02:03]} 46. Kg2 {[%clk 0:00:03.6]} 46... e1=Q {[%clk
0:02:00.2]} 0-1

[Event "Live Chess"]
[Site "Chess.com"]
[Date "2023.05.21"]
[Round "-"]
[White "LiamClery2020"]
[Black "TheSmoulderingMaster"]
[Result "1-0"]
[WhiteElo "2005"]
[BlackElo "1643"]
[TimeControl "300"]
[EndTime "4:07:28 PDT"]
[Termination "LiamClery2020 won by resignation"]

1. e4 {[%clk 0:04:58.4]} 1... c5 {[%clk 0:04:58.7]} 2. Nf3 {[%clk 0:04:55]} 2...
d6 {[%clk 0:04:57.5]} 3. Bb5+ {[%clk 0:04:54.1]} 3... Nd7 {[%clk 0:04:55]} 4.
Bxd7+ {[%clk 0:04:53.4]} 4... Bxd7 {[%clk 0:04:54]} 5. O-O {[%clk 0:04:53.3]}
5... Bc6 {[%clk 0:04:53]} 6. Re1 {[%clk 0:04:52.2]} 6... e5 {[%clk 0:04:50.8]}
7. c3 {[%clk 0:04:51.4]} 7... Nf6 {[%clk 0:04:48.1]} 8. d4 {[%clk 0:04:50.9]}
8... cxd4 {[%clk 0:04:46.9]} 9. cxd4 {[%clk 0:04:50]} 9... exd4 {[%clk
0:04:46.1]} 10. Nxd4 {[%clk 0:04:49]} 10... Be7 {[%clk 0:04:43.1]} 11. Nc3
{[%clk 0:04:48.3]} 11... O-O {[%clk 0:04:42]} 12. Nf5 {[%clk 0:04:47.4]} 12...
Bd7 {[%clk 0:04:35.1]} 13. Nxd6 {[%clk 0:04:45.7]} 13... Bxd6 {[%clk 0:04:30.7]}
14. Qxd6 {[%clk 0:04:44.3]} 14... Bc6 {[%clk 0:04:30.6]} 15. Qg3 {[%clk
0:04:42.6]} 15... Bxe4 {[%clk 0:04:25.1]} 16. Bg5 {[%clk 0:04:33.5]} 16... Bg6
{[%clk 0:04:21.6]} 17. Rad1 {[%clk 0:04:30.5]} 17... Qb6 {[%clk 0:04:18.9]} 18.
Na4 {[%clk 0:04:11.5]} 18... Qb4 {[%clk 0:04:11.4]} 19. b3 {[%clk 0:04:05.2]}
19... Ne4 {[%clk 0:04:03.2]} 20. Qh4 {[%clk 0:03:57.2]} 20... Nxg5 {[%clk
0:04:01.7]} 21. Qxb4 {[%clk 0:03:56]} 1-0

[Event "Live Chess"]
[Site "Chess.com"]
[Date "2023.05.21"]
[Round "-"]
[White "Bunny55"]
[Black "Woodpusher500"]
[Result "0-1"]
[WhiteElo "982"]
[BlackElo "1024"]
[TimeControl "300"]
[EndTime "4:07:40 PDT"]
[Termination "Woodpusher500 won by checkmate"]

1. e4 {[%clk 0:04:54.6]} 1... e5 {[%clk 0:04:56.9]} 2. Nf3 {[%clk 0:04:52.5]}
2... Nc6 {[%clk 0:04:55.2]} 3. Bb5 {[%clk 0:04:50.4]} 3... f5 {[%clk 0:04:52.8]}
4. Nc3 {[%clk 0:04:45.3]} 4... fxe4 {[%clk 0:04:50.1]} 5. Nxe4 {[%clk
0:04:43.3]} 5... d5 {[%clk 0:04:44.1]} 6. Ng3 {[%clk 0:04:36.1]} 6... Bd7 {[%clk
0:04:36.2]} 7. O-O {[%clk 0:04:32.7]} 7... Nf6 {[%clk 0:04:22.8]} 8. Re1 {[%clk
0:04:30.6]} 8... Bd6 {[%clk 0:04:12]} 9. d4 {[%clk 0:04:22.3]} 9... e4 {[%clk
0:04:04.9]} 10. Bxc6 {[%clk 0:04:17.3]} 10... Bxc6 {[%clk 0:03:51]} 11. Ne5
{[%clk 0:04:15.5]} 11... Bxe5 {[%clk 0:03:34.7]} 12. dxe5 {[%clk 0:04:11.7]}
12... Nd7 {[%clk 0:03:26.2]} 13. Nf5 {[%clk 0:04:08.1]} 13... O-O {[%clk
0:03:18.6]} 14. Qg4 {[%clk 0:04:03.1]} 14... g6 {[%clk 0:03:08]} 15. Bh6 {[%clk
0:03:55]} 15... Rxf5 {[%clk 0:03:01.8]} 16. Re3 {[%clk 0:03:47.6]} 16... Nf6
{[%clk 0:02:53.9]} 17. exf6 {[%clk 0:03:40.9]} 17... Qxf6 {[%clk 0:02:52]} 18.
Rg3 {[%clk 0:03:25.2]} 18... Rxf2 {[%clk 0:02:46.5]} 19. Bg5 {[%clk 0:03:07.9]}
19... Qf7 {[%clk 0:02:38.2]} 20. Be3 {[%clk 0:02:55.7]} 20... Rf6 {[%clk
0:02:25]} 21. Bd4 {[%clk 0:02:41.8]} 21... Rf5 {[%clk 0:02:16.5]} 22. Qh4 {[%clk
0:02:33.7]} 22... Bb5 {[%clk 0:02:05.1]} 23. Qh6 {[%clk 0:02:18]} 23... Rf1+
{[%clk 0:01:56.9]} 24. Rxf1 {[%clk 0:01:53.7]} 24... Qxf1# {[%clk 0:01:54.3]}
0-1

[Event "Live Chess"]
[Site "Chess.com"]
[Date "2023.05.21"]
[Round "-"]
[White "apl_trainer"]
[Black "Abde2012"]
[Result "1-0"]
[WhiteElo "1790"]
[BlackElo "743"]
[TimeControl "300"]
[EndTime "4:07:47 PDT"]
[Termination "apl_trainer won by resignation"]

1. d4 {[%clk 0:04:57.6]} 1... c6 {[%clk 0:04:58.3]} 2. c4 {[%clk 0:04:56.3]}
2... d5 {[%clk 0:04:57.8]} 3. Nf3 {[%clk 0:04:54.5]} 3... dxc4 {[%clk
0:04:54.5]} 4. e4 {[%clk 0:04:49.9]} 4... Bg4 {[%clk 0:04:52.8]} 5. Bxc4 {[%clk
0:04:46.5]} 5... e6 {[%clk 0:04:51.5]} 6. Qb3 {[%clk 0:04:34.9]} 6... Qa5+
{[%clk 0:04:40.5]} 7. Nc3 {[%clk 0:04:32.4]} 7... Qb6 {[%clk 0:04:36.6]} 8. Qxb6
{[%clk 0:04:24.5]} 8... axb6 {[%clk 0:04:34.9]} 9. Ne5 {[%clk 0:04:23.3]} 9...
Bb4 {[%clk 0:04:31.6]} 10. Nxg4 {[%clk 0:04:20.5]} 10... Bxc3+ {[%clk
0:04:30.7]} 11. bxc3 {[%clk 0:04:19.1]} 11... Nf6 {[%clk 0:04:29.9]} 12. Nxf6+
{[%clk 0:04:16.2]} 12... gxf6 {[%clk 0:04:29.4]} 13. O-O {[%clk 0:04:14.1]}
13... Rg8 {[%clk 0:04:28.9]} 14. a4 {[%clk 0:04:11.4]} 14... Na6 {[%clk
0:04:27.3]} 15. Bf4 {[%clk 0:04:01.4]} 15... Rg4 {[%clk 0:04:20.5]} 16. g3
{[%clk 0:03:55.5]} 16... e5 {[%clk 0:04:19.6]} 17. f3 {[%clk 0:03:41.6]} 17...
Rg6 {[%clk 0:04:12]} 18. Be3 {[%clk 0:03:39.7]} 18... Nc7 {[%clk 0:04:08.4]} 19.
Rfb1 {[%clk 0:03:37.5]} 19... b5 {[%clk 0:04:07.2]} 20. axb5 {[%clk 0:03:35.9]}
20... Rxa1 {[%clk 0:04:05.3]} 21. Rxa1 {[%clk 0:03:35]} 21... cxb5 {[%clk
0:04:04.3]} 22. Bd3 {[%clk 0:03:30.2]} 22... exd4 {[%clk 0:04:01.8]} 23. cxd4
{[%clk 0:03:28.8]} 23... h5 {[%clk 0:03:58.8]} 24. Ra7 {[%clk 0:03:26.8]} 24...
Na6 {[%clk 0:03:52.8]} 1-0

[Event "Live Chess"]
[Site "Chess.com"]
[Date "2023.05.21"]
[Round "-"]
[White "WilliamofOrange16th"]
[Black "davigator"]
[Result "0-1"]
[WhiteElo "1865"]
[BlackElo "2326"]
[TimeControl "300"]
[EndTime "4:07:53 PDT"]
[Termination "davigator won by resignation"]

1. e4 {[%clk 0:04:57.5]} 1... c5 {[%clk 0:04:57.1]} 2. Nc3 {[%clk 0:04:54.4]}
2... Nc6 {[%clk 0:04:55.8]} 3. f4 {[%clk 0:04:53.4]} 3... g6 {[%clk 0:04:54.9]}
4. Nf3 {[%clk 0:04:52.6]} 4... Bg7 {[%clk 0:04:54.1]} 5. Bc4 {[%clk 0:04:52.3]}
5... Nh6 {[%clk 0:04:50]} 6. d3 {[%clk 0:04:50.7]} 6... O-O {[%clk 0:04:48.9]}
7. O-O {[%clk 0:04:49.5]} 7... d6 {[%clk 0:04:47.9]} 8. h3 {[%clk 0:04:47.7]}
8... e6 {[%clk 0:04:45.6]} 9. g4 {[%clk 0:04:46.5]} 9... f5 {[%clk 0:04:41.6]}
10. Ng5 {[%clk 0:04:44]} 10... Nd4 {[%clk 0:04:24.8]} 11. Ne2 {[%clk 0:04:29.6]}
11... Nf7 {[%clk 0:04:23.1]} 12. Nxf7 {[%clk 0:04:20.6]} 12... Rxf7 {[%clk
0:04:19.6]} 13. c3 {[%clk 0:04:19.3]} 13... Nc6 {[%clk 0:04:15.5]} 14. Ng3
{[%clk 0:04:12.3]} 14... d5 {[%clk 0:04:14.5]} 15. Bb3 {[%clk 0:04:07.8]} 15...
Na5 {[%clk 0:04:07.4]} 16. Bc2 {[%clk 0:04:06.3]} 16... b6 {[%clk 0:03:58.1]}
17. e5 {[%clk 0:04:03.3]} 17... Nc6 {[%clk 0:03:53.7]} 18. d4 {[%clk 0:04:00.7]}
18... Ba6 {[%clk 0:03:50.7]} 19. Rf2 {[%clk 0:03:58.6]} 19... Rc8 {[%clk
0:03:48.2]} 20. Be3 {[%clk 0:03:57.2]} 20... cxd4 {[%clk 0:03:46.7]} 21. cxd4
{[%clk 0:03:55.9]} 21... Nb4 {[%clk 0:03:45.8]} 22. Bb1 {[%clk 0:03:55.1]} 22...
Bh6 {[%clk 0:03:35.8]} 23. a3 {[%clk 0:03:53.8]} 23... Nc6 {[%clk 0:03:33.8]}
24. g5 {[%clk 0:03:52.7]} 24... Bf8 {[%clk 0:03:29.9]} 25. b4 {[%clk 0:03:48.3]}
25... Bc4 {[%clk 0:03:27.9]} 26. Bd3 {[%clk 0:03:42.7]} 26... a5 {[%clk
0:03:24]} 27. Bxc4 {[%clk 0:03:17.2]} 27... dxc4 {[%clk 0:03:22.6]} 28. bxa5
{[%clk 0:03:16]} 28... Nxa5 {[%clk 0:03:18.9]} 29. Rb1 {[%clk 0:03:13.4]} 29...
Bxa3 {[%clk 0:03:10.6]} 30. Ra2 {[%clk 0:03:11.3]} 30... Bf8 {[%clk 0:03:07.3]}
31. d5 {[%clk 0:03:07.2]} 31... Bc5 {[%clk 0:03:02.6]} 32. Bxc5 {[%clk
0:03:00.2]} 32... Rxc5 {[%clk 0:03:01.2]} 33. d6 {[%clk 0:02:59.4]} 33... Rd7
{[%clk 0:02:47]} 34. Ne2 {[%clk 0:02:57.4]} 34... c3 {[%clk 0:02:41.2]} 35. Rc2
{[%clk 0:02:53.5]} 35... Qc8 {[%clk 0:02:38.5]} 36. Qd3 {[%clk 0:02:46.4]} 36...
Rb7 {[%clk 0:02:34.1]} 37. Rxc3 {[%clk 0:02:44.8]} 37... Rxc3 {[%clk 0:02:27.6]}
38. Nxc3 {[%clk 0:02:39.1]} 38... Qc5+ {[%clk 0:02:21.8]} 39. Kg2 {[%clk
0:02:36.1]} 39... Rd7 {[%clk 0:02:19.8]} 40. Rb5 {[%clk 0:02:27.3]} 40... Qc6+
{[%clk 0:02:18.7]} 41. Qf3 {[%clk 0:02:23.5]} 41... Qxf3+ {[%clk 0:02:07.1]} 42.
Kxf3 {[%clk 0:02:23.4]} 42... Nc4 {[%clk 0:02:05.5]} 43. Na4 {[%clk 0:02:19.6]}
43... Rb7 {[%clk 0:02:02.8]} 44. Rb4 {[%clk 0:02:13.2]} 44... b5 {[%clk
0:02:00.8]} 45. Nc5 {[%clk 0:02:12.3]} 45... Rb8 {[%clk 0:02:00]} 46. Nxe6
{[%clk 0:02:06.5]} 46... Kf7 {[%clk 0:01:52.7]} 47. Nc7 {[%clk 0:02:04.1]} 47...
Nd2+ {[%clk 0:01:43.2]} 48. Ke2 {[%clk 0:01:58.8]} 48... Ne4 {[%clk 0:01:43.1]}
49. Rxe4 {[%clk 0:01:54.1]} 49... fxe4 {[%clk 0:01:40.1]} 50. e6+ {[%clk
0:01:53.1]} 50... Kf8 {[%clk 0:01:37.2]} 51. Ke3 {[%clk 0:01:39.3]} 51... b4
{[%clk 0:01:36.5]} 52. Kxe4 {[%clk 0:01:37.2]} 52... b3 {[%clk 0:01:35.8]} 53.
Ke5 {[%clk 0:01:24.5]} 53... b2 {[%clk 0:01:34.8]} 54. e7+ {[%clk 0:01:22]}
54... Kf7 {[%clk 0:01:32.1]} 55. e8=Q+ {[%clk 0:00:57.9]} 55... Rxe8+ {[%clk
0:01:30.3]} 56. Nxe8 {[%clk 0:00:57.2]} 56... b1=Q {[%clk 0:01:29]} 57. d7
{[%clk 0:00:48.7]} 57... Ke7 {[%clk 0:01:26.3]} 58. Nf6 {[%clk 0:00:46.8]} 58...
Qe1+ {[%clk 0:01:23.7]} 59. Kd5 {[%clk 0:00:45.4]} 59... Qh1+ {[%clk 0:01:20.7]}
60. Kc5 {[%clk 0:00:42.2]} 60... Qxh3 {[%clk 0:01:18.9]} 61. Kc6 {[%clk
0:00:41.4]} 61... Qc3+ {[%clk 0:01:17.4]} 62. Kb7 {[%clk 0:00:39.3]} 62... Qd4
{[%clk 0:01:02.1]} 63. Kc7 {[%clk 0:00:34.4]} 63... Qc5+ {[%clk 0:01:00.5]} 64.
Kb7 {[%clk 0:00:32.3]} 64... Qd6 {[%clk 0:00:54.6]} 65. Kc8 {[%clk 0:00:28.8]}
65... Qc6+ {[%clk 0:00:52.6]} 66. Kb8 {[%clk 0:00:27]} 66... Kd8 {[%clk
0:00:51.4]} 67. Ka7 {[%clk 0:00:19.5]} 67... Qb5 {[%clk 0:00:49.1]} 68. f5
{[%clk 0:00:13.3]} 68... gxf5 {[%clk 0:00:44.4]} 0-1